[Event "FTX Road to Miami KO 2022"]
[Site "Online"]
[Date "2022.07.16"]
[Round "3.4"]
[White "Wei, Yi"]
[Black "Aronian, Levon"]
[Result "0-1"]
[ECO "D39"]
[WhiteElo "2727"]
[BlackElo "2775"]
[PlyCount "86"]
[EventDate "2022.07.09"]
[EventType "k.o."]
[EventCountry "NET"]
[TimeControl "900+10"]

1. d4 {[%emt 0:00:00]} Nf6 {[%emt 0:00:00]} 2. c4 {[%emt 0:00:03]} e6 {[%emt 0:00:01]} 3. Nf3 {[%emt 0:00:04]} d5 {[%emt 0:00:01]} 4. Nc3 {[%emt 0:00:01]} Bb4 {[%emt 0:00:02]} 5. Bg5 {[%emt 0:00:29]} dxc4 {[%emt 0:00:02]} 6. e4 {[%emt 0:00:12]} b5 {[%emt 0:00:01]} 7. a4 {[%emt 0:00:20]} c5 {[%emt 0:00:02]} 8. axb5 {[%emt 0:00:12]} cxd4 {[%emt 0:00:05]} 9. Nxd4 {[%emt 0:00:13]} h6 {[%emt 0:00:04]} 10. Bxf6 {[%emt 0:00:04]} Qxf6 {[%emt 0:00:01]} 11. Bxc4 {[%emt 0:00:02]} Bb7 {[%emt 0:00:18]} 12. O-O {[%emt 0:01:11]} O-O {[%emt 0:00:06]} 13. Nf3 {[%emt 0:03:20]} Rd8 {[%emt 0:00:20]} 14. Qb3 {[%emt 0:00:17]} Bc5 {[%emt 0:00:10]} 15. Na4 {[%emt 0:00:19]} Bf8 {[%emt 0:00:13]} 16. Qe3 {[%emt 0:00:33]} Nd7 {[%emt 0:00:01]} 17. Rad1 {[%emt 0:00:07]} g5 {[%emt 0:00:08]} 18. e5 {[%emt 0:01:05]} Qf4 {[%emt 0:00:22]} 19. Qxf4 {[%emt 0:00:33]} gxf4 {[%emt 0:00:00]} 20. Be2 {[%emt 0:01:04]} Rab8 {[%emt 0:00:31]} 21. Rd4 {[%emt 0:00:37]} Bxf3 {[%emt 0:00:03]} 22. gxf3 {[%emt 0:00:58]} Nxe5 {[%emt 0:00:10]} 23. Rfd1 {[%emt 0:00:02]} Rxd4 {[%emt 0:00:28]} 24. Rxd4 {[%emt 0:00:01]} Rxb5 {[%emt 0:00:01]} 25. Rxf4 {[%emt 0:00:01]} Rd5 {[%emt 0:00:40]} 26. Re4 {[%emt 0:01:33]} Ng6 {[%emt 0:00:03]} 27. h3 {[%emt 0:02:59]} Bg7 {[%emt 0:00:49]} 28. Kf1 {[%emt 0:00:32]} Rh5 {[%emt 0:00:17]} 29. Kg2 {[%emt 0:00:08]} Be5 {[%emt 0:00:20]} 30. f4 {[%emt 0:01:06]} Rh4 {[%emt 0:00:02]} 31. Kg3 {[%emt 0:00:26]} Bxf4+ {[%emt 0:00:56]} 32. Kg2 {[%emt 0:00:00]} Be5 {[%emt 0:00:42]} 33. Rxh4 {[%emt 0:00:06]} Nxh4+ {[%emt 0:00:00]} 34. Kf1 {[%emt 0:00:01]} Bd4 {[%emt 0:00:01]} 35. b4 {[%emt 0:00:59]} Ng6 {[%emt 0:00:12]} 36. Nc5 {[%emt 0:00:25]} Nf4 {[%emt 0:00:02]} 37. Bc4 {[%emt 0:00:14]} Kf8 {[%emt 0:00:36]} 38. Nd7+ {[%emt 0:00:50]} Ke7 {[%emt 0:00:33]} 39. Nb8 {[%emt 0:00:01]} Kd6 {[%emt 0:00:01]} 40. h4 {[%emt 0:00:11]} Nh3 {[%emt 0:00:06]} 41. f3 {[%emt 0:00:06]} Nf4 {[%emt 0:00:02]} 42. Bb5 {[%emt 0:00:29]} Nd5 {[%emt 0:00:25]} 43. Be8 {[%emt 0:00:12]} Nxb4 {[%emt 0:00:18]} 0-1

[Event "FTX Road to Miami KO 2022"]
[Site "Online"]
[Date "2022.07.17"]
[Round "3.5"]
[White "Wei, Yi"]
[Black "Aronian, Levon"]
[Result "0-1"]
[ECO "E24"]
[WhiteElo "2727"]
[BlackElo "2775"]
[PlyCount "122"]
[EventDate "2022.07.09"]
[EventType "k.o."]
[EventCountry "NET"]
[TimeControl "900+10"]

1. d4 {[%emt 0:00:00]} Nf6 {[%emt 0:00:00]} 2. c4 {[%emt 0:00:02]} e6 {[%emt 0:00:01]} 3. Nc3 {[%emt 0:00:02]} Bb4 {[%emt 0:00:02]} 4. a3 {[%emt 0:00:01]} Bxc3+ {[%emt 0:00:06]} 5. bxc3 {[%emt 0:00:01]} b6 {[%emt 0:00:07]} 6. f3 {[%emt 0:00:07]} Nc6 {[%emt 0:00:03]} 7. e4 {[%emt 0:00:03]} Na5 {[%emt 0:00:04]} 8. Bd3 {[%emt 0:00:07]} d6 {[%emt 0:00:47]} 9. f4 {[%emt 0:00:09]} Bb7 {[%emt 0:00:47]} 10. Qe2 {[%emt 0:00:05]} Nb3 {[%emt 0:00:07]} 11. Rb1 {[%emt 0:00:02]} Nxc1 {[%emt 0:00:01]} 12. Rxc1 {[%emt 0:00:00]} e5 {[%emt 0:00:00]} 13. Nf3 {[%emt 0:00:14]} exf4 {[%emt 0:00:36]} 14. O-O {[%emt 0:01:20]} O-O {[%emt 0:00:04]} 15. Nd2 {[%emt 0:01:05]} g6 {[%emt 0:02:21]} 16. Rxf4 {[%emt 0:00:19]} Nh5 {[%emt 0:00:02]} 17. Rf2 {[%emt 0:09:19]} Qg5 {[%emt 0:00:03]} 18. Rcf1 {[%emt 0:00:04]} Rae8 {[%emt 0:00:02]} 19. Nf3 {[%emt 0:00:21]} Qg4 {[%emt 0:01:59]} 20. Nd2 {[%emt 0:01:36]} Qxe2 {[%emt 0:00:44]} 21. Rxe2 {[%emt 0:00:01]} Bc8 {[%emt 0:02:34]} 22. Ref2 {[%emt 0:00:15]} Re7 {[%emt 0:01:29]} 23. Nf3 {[%emt 0:00:23]} Nf6 {[%emt 0:01:53]} 24. e5 {[%emt 0:00:42]} dxe5 {[%emt 0:00:52]} 25. Nxe5 {[%emt 0:00:06]} Ng4 {[%emt 0:00:01]} 26. Nxg4 {[%emt 0:00:14]} Bxg4 {[%emt 0:00:00]} 27. h3 {[%emt 0:00:18]} Bd7 {[%emt 0:00:12]} 28. Re2 {[%emt 0:00:24]} Rxe2 {[%emt 0:00:16]} 29. Bxe2 {[%emt 0:00:01]} Re8 {[%emt 0:00:02]} 30. Kf2 {[%emt 0:00:00]} Bc6 {[%emt 0:00:46]} 31. d5 {[%emt 0:00:32]} Bd7 {[%emt 0:00:06]} 32. Rb1 {[%emt 0:00:23]} Bf5 {[%emt 0:02:21]} 33. Rb2 {[%emt 0:00:02]} Be4 {[%emt 0:00:31]} 34. a4 {[%emt 0:00:27]} Kf8 {[%emt 0:00:12]} 35. Bf3 {[%emt 0:00:55]} Bxf3 {[%emt 0:00:06]} 36. Kxf3 {[%emt 0:00:03]} Re1 {[%emt 0:00:02]} 37. c5 {[%emt 0:00:45]} Rc1 {[%emt 0:00:02]} 38. Rb3 {[%emt 0:00:03]} bxc5 {[%emt 0:00:48]} 39. Rb7 {[%emt 0:00:21]} Rxc3+ {[%emt 0:00:01]} 40. Ke4 {[%emt 0:00:03]} Ke7 {[%emt 0:00:26]} 41. Rxc7+ {[%emt 0:00:03]} Kd6 {[%emt 0:00:02]} 42. Rc6+ {[%emt 0:00:33]} Kd7 {[%emt 0:00:00]} 43. Ra6 {[%emt 0:00:14]} f5+ {[%emt 0:00:02]} 44. Kf4 {[%emt 0:00:10]} Rc2 {[%emt 0:00:37]} 45. g4 {[%emt 0:00:18]} Rc4+ {[%emt 0:00:18]} 46. Kf3 {[%emt 0:00:08]} Rc3+ {[%emt 0:00:13]} 47. Kf4 {[%emt 0:00:02]} Rc4+ {[%emt 0:00:23]} 48. Kf3 {[%emt 0:00:01]} Rc3+ {[%emt 0:00:24]} 49. Kf4 {[%emt 0:00:01]} Rxh3 {[%emt 0:00:06]} 50. gxf5 {[%emt 0:00:07]} gxf5 {[%emt 0:00:05]} 51. Kxf5 {[%emt 0:00:11]} h5 {[%emt 0:00:26]} 52. Ke4 {[%emt 0:00:34]} Kc7 {[%emt 0:00:23]} 53. Rxa7+ {[%emt 0:00:08]} Kb6 {[%emt 0:00:01]} 54. Ra8 {[%emt 0:00:28]} c4 {[%emt 0:00:12]} 55. Rc8 {[%emt 0:00:10]} Kb7 {[%emt 0:00:04]} 56. Rc5 {[%emt 0:00:02]} Rg3 {[%emt 0:00:17]} 57. d6 {[%emt 0:00:20]} h4 {[%emt 0:00:02]} 58. a5 {[%emt 0:00:12]} h3 {[%emt 0:00:05]} 59. Rc7+ {[%emt 0:00:09]} Ka6 {[%emt 0:00:06]} 60. Rh7 {[%emt 0:00:08]} Rd3 {[%emt 0:00:11]} 61. Rh6 {[%emt 0:00:21]} Kxa5 {[%emt 0:00:05]} 0-1

[Event "FTX Road to Miami KO 2022"]
[Site "Online"]
[Date "2022.07.17"]
[Round "3.6"]
[White "Aronian, Levon"]
[Black "Wei, Yi"]
[Result "1/2-1/2"]
[ECO "B06"]
[WhiteElo "2775"]
[BlackElo "2727"]
[PlyCount "119"]
[EventDate "2022.07.09"]
[EventType "k.o."]
[EventCountry "NET"]
[TimeControl "900+10"]

1. d4 {[%emt 0:00:00]} g6 {[%emt 0:00:00]} 2. e4 {[%emt 0:00:02]} Bg7 {[%emt 0:00:02]} 3. Nf3 {[%emt 0:00:09]} d6 {[%emt 0:00:08]} 4. c3 {[%emt 0:00:09]} Nd7 {[%emt 0:00:49]} 5. Bd3 {[%emt 0:00:22]} e5 {[%emt 0:00:11]} 6. O-O {[%emt 0:00:02]} Ne7 {[%emt 0:00:01]} 7. Re1 {[%emt 0:00:04]} O-O {[%emt 0:00:02]} 8. Nbd2 {[%emt 0:00:01]} b6 {[%emt 0:00:16]} 9. Nf1 {[%emt 0:00:05]} Bb7 {[%emt 0:00:10]} 10. Ng3 {[%emt 0:00:01]} c5 {[%emt 0:00:40]} 11. d5 {[%emt 0:00:29]} h6 {[%emt 0:00:10]} 12. Bc2 {[%emt 0:00:45]} f5 {[%emt 0:03:41]} 13. exf5 {[%emt 0:00:02]} Nxf5 {[%emt 0:00:01]} 14. c4 {[%emt 0:00:35]} b5 {[%emt 0:00:26]} 15. cxb5 {[%emt 0:00:02]} Nb6 {[%emt 0:00:37]} 16. a4 {[%emt 0:00:07]} a6 {[%emt 0:00:17]} 17. bxa6 {[%emt 0:00:42]} Rxa6 {[%emt 0:00:02]} 18. Ra3 {[%emt 0:00:13]} Ne7 {[%emt 0:02:10]} 19. Be4 {[%emt 0:03:22]} Qe8 {[%emt 0:01:48]} 20. Nh4 {[%emt 0:02:17]} Rxa4 {[%emt 0:00:42]} 21. Rxa4 {[%emt 0:00:39]} Nxa4 {[%emt 0:00:04]} 22. Qb3 {[%emt 0:01:03]} Bc8 {[%emt 0:00:35]} 23. Qc2 {[%emt 0:00:19]} Rf6 {[%emt 0:00:19]} 24. Bd3 {[%emt 0:01:19]} g5 {[%emt 0:00:31]} 25. Nhf5 {[%emt 0:00:50]} Nxf5 {[%emt 0:00:52]} 26. Bxf5 {[%emt 0:00:15]} Bxf5 {[%emt 0:00:10]} 27. Nxf5 {[%emt 0:00:02]} Nb6 {[%emt 0:00:06]} 28. Ne3 {[%emt 0:00:37]} Qf7 {[%emt 0:00:41]} 29. b4 {[%emt 0:01:34]} cxb4 {[%emt 0:00:44]} 30. Qb3 {[%emt 0:01:58]} Rf4 {[%emt 0:00:35]} 31. Bd2 {[%emt 0:00:10]} Rxf2 {[%emt 0:02:35]} 32. Bxb4 {[%emt 0:00:01]} e4 {[%emt 0:00:02]} 33. Bc3 {[%emt 0:01:08]} Bxc3 {[%emt 0:00:03]} 34. Qxc3 {[%emt 0:00:00]} Rf4 {[%emt 0:00:42]} 35. Qc6 {[%emt 0:00:22]} Nd7 {[%emt 0:00:21]} 36. Qxd6 {[%emt 0:00:02]} Nf6 {[%emt 0:00:05]} 37. Rc1 {[%emt 0:00:24]} Qd7 {[%emt 0:00:27]} 38. Qb8+ {[%emt 0:00:26]} Ne8 {[%emt 0:00:02]} 39. Rc8 {[%emt 0:00:28]} Rf8 {[%emt 0:00:02]} 40. h3 {[%emt 0:00:05]} Qf7 {[%emt 0:00:12]} 41. Kh1 {[%emt 0:00:31]} Nd6 {[%emt 0:00:21]} 42. Rxf8+ {[%emt 0:00:08]} Qxf8 {[%emt 0:00:01]} 43. Qxf8+ {[%emt 0:00:10]} Kxf8 {[%emt 0:00:01]} 44. h4 {[%emt 0:00:12]} Kf7 {[%emt 0:00:20]} 45. h5 {[%emt 0:00:03]} Kf6 {[%emt 0:00:11]} 46. Ng4+ {[%emt 0:00:10]} Kf5 {[%emt 0:00:18]} 47. Nxh6+ {[%emt 0:00:01]} Kf4 {[%emt 0:00:01]} 48. Kg1 {[%emt 0:00:04]} g4 {[%emt 0:00:11]} 49. Ng8 {[%emt 0:00:24]} Kg5 {[%emt 0:00:22]} 50. h6 {[%emt 0:00:03]} Kg6 {[%emt 0:00:03]} 51. Kf2 {[%emt 0:00:02]} Nf5 {[%emt 0:00:02]} 52. h7 {[%emt 0:00:20]} g3+ {[%emt 0:00:18]} 53. Ke2 {[%emt 0:00:01]} Kxh7 {[%emt 0:00:00]} 54. Nf6+ {[%emt 0:00:02]} Kg6 {[%emt 0:00:01]} 55. Nxe4 {[%emt 0:00:02]} Nh4 {[%emt 0:00:01]} 56. Kf1 {[%emt 0:00:42]} Kf5 {[%emt 0:00:05]} 57. Nd2 {[%emt 0:00:02]} Nxg2 {[%emt 0:00:06]} 58. Kxg2 {[%emt 0:00:03]} Ke5 {[%emt 0:00:01]} 59. Ne4 {[%emt 0:00:02]} Kxd5 {[%emt 0:00:01]} 60. Nxg3 {[%emt 0:00:00]} 1/2-1/2

[Event "FTX Road to Miami KO 2022"]
[Site "Online"]
[Date "2022.07.17"]
[Round "3.7"]
[White "Wei, Yi"]
[Black "Aronian, Levon"]
[Result "0-1"]
[ECO "A50"]
[WhiteElo "2727"]
[BlackElo "2775"]
[PlyCount "52"]
[EventDate "2022.07.09"]
[EventType "k.o."]
[EventCountry "NET"]
[TimeControl "900+10"]

{[%evp 0,52,14,32,26,6,6,-57,-21,-37,-14,-37,-18,-16,0,-43,-19,-63,-19,-4,-12,-17,-4,-10,9,1,10,-17,1,-104,93,93,72,-9,-20,-21,28,-19,20,-10,-68,-43,-18,-4,16,-64,25,-35,34,-64,-207,-229,-49,-114,-103]} 1. d4 Nf6 2. c4 e6 3. g4 Bb4+ 4. Bd2 Bxd2+ 5. Qxd2 d5 6. Nc3 dxc4 7. g5 Nd5 8. h4 Bd7 9. e4 Nb6 10. Nf3 Nc6 11. O-O-O Qe7 12. d5 Nb4 13. Qd4 f6 14. e5 O-O-O 15. d6 cxd6 16. exd6 Qf7 17. Qc5+ Nc6 18. a4 Kb8 19. a5 Nd5 20. Bxc4 Nxc3 21. bxc3 Rc8 22. Bb3 Qh5 23. Rd3 e5 24. Nd2 Nd4 25. Qb4 Qe2 26. Bd5 Bc6 0-1